{"text_format":"1","workbook":"xlsx","n_sheets":9,"sheets":["Ark1","Ark2","Ansøgning om udbetaling","Ansøgning om udbetaling 4","Deltagere, kun til leverandører","Underskrift","Bilagsoversigt","Kalender","Tilskudssatser"],"not_rendered":{"charts":0,"images":2,"macros":1,"external_links":0,"defined_names":1,"comments":0,"pivot_tables":0},"unopened":[],"bounds":{"document_bytes":16777216,"sheet_cells":100000,"rows_first":2000,"rows_last":500,"rows_between":2000,"halvings":0,"cell_chars":16384,"cell_head_chars":4096},"cells_cut":0,"cells_raw":0,"read":"whole","date_system":"1900"}

{"sheet":"Ark1","index":0,"n_rows":30,"n_cols":25,"rows_kept":30,"cut":false,"hidden":true,"merged":[]}
[]
[]
[]
[]
[]
["Bilagsnr.","Produktnummer"]
[null,111,112,113,114,115,116,121,127,122,128,125,126,129,130,311,512,"Pris på faktura ex. Moms","Total liter","total kg","Produkt",null,null,null,"Produkt nr."]
[null,"antal l/kg","antal l/kg","antal l/kg","antal l/kg","antal l/kg","antal l/kg","antal l/kg","antal l/kg","antal l/kg","antal l/kg","antal l/kg","antal l/kg","antal l/kg","antal l/kg","kg","kg",null,null,null,"Letmælk maks 1,5% fedt",null,null,null,111]
[556238,70,null,null,7,null,null,null,8,null,null,null,10,null,11,null,null,null,{"$f":"SUM(B9:O9)","v":106},{"$f":"P9+Q9","v":0},"Letmælk Øko maks 1,5 % fedt",null,null,null,112]
[567047,{"$f":"0.5+7+8+9","v":24.5},null,null,null,null,null,null,{"$f":"0.07+5","v":5.07},null,null,3]
[null,null,null,null,null,null,null,null,null,null,null,null,null,null,null,null,null,null,null,null,"Skummetmælk maks 1,5% fedt",null,null,null,113]
[null,null,null,null,null,null,null,null,null,null,null,null,null,null,null,null,null,null,null,null,"Skummetmælk Øko maks 1,5% fedt",null,null,null,114]
[null,null,null,null,null,null,null,null,null,null,null,null,null,null,null,null,null,null,null,null,"Minimælk maks 1,5% fedt",null,null,null,115]
[null,null,null,null,null,null,null,null,null,null,null,null,null,null,null,null,null,null,null,null,"Minimælk Øko maks 1,5% fedt",null,null,null,116]
[null,null,null,null,null,null,null,null,null,null,null,null,null,null,null,null,null,null,null,null,"Skummetmælksyoghurt naturel 0,7 % fedt",null,null,null,121]
[null,null,null,null,null,null,null,null,null,null,null,null,null,null,null,null,null,null,null,null,"Skummetmælksyoghurt naturel Øko 0,7% fedt",null,null,null,127]
[null,null,null,null,null,null,null,null,null,null,null,null,null,null,null,null,null,null,null,null,"Skummetmælksyoghurt m/frugt 0,7% fedt/9% sukker",null,null,null,122]
[null,null,null,null,null,null,null,null,null,null,null,null,null,null,null,null,null,null,null,null,"Skummetmælksyoghurt m/frugt Øko 0,7% fedt/9% sukker",null,null,null,128]
[null,null,null,null,null,null,null,null,null,null,null,null,null,null,null,null,null,null,null,null,"Kærnemælk maks 0,7 % fedt ",null,null,null,125]
[null,null,null,null,null,null,null,null,null,null,null,null,null,null,null,null,null,null,null,null,"Kærnemælk Øko maks 0,7% fedt ",null,null,null,126]
[null,null,null,null,null,null,null,null,null,null,null,null,null,null,null,null,null,null,null,null,"A38 naturel (maks 0,7% fedt)",null,null,null,129]
[null,null,null,null,null,null,null,null,null,null,null,null,null,null,null,null,null,null,null,null,"A38 naturel (maks 0,7% fedt) Øko",null,null,null,130]
["Total",{"$f":"SUM(B9:B22)","v":94.5},{"$f":"SUM(C9:C22)","v":0},0,7,0,0,0,13.07,0,0,3,10,0,11,0,0,null,null,null,"Frisk ost (maks 5% fedt (hytteost))",null,null,null,311]
[null,null,null,null,null,null,null,null,null,null,null,null,null,null,null,null,null,null,null,null,"Modnet ost (maks.30+ el. 17% fedt)",null,null,null,512]
["Maks mængde pr. elev/barn pr. dag",0.25,0.25,0.25,0.25,0.25,0.25,0.25,0.25,0.25,0.25,0.25,0.25,0.25,0.25,8.5999999999999993E-2,3.4000000000000002E-2]
["Antal udleverede enheder",200,null,null,200,null,null,1000]
["Antal udleverede enheder, total",{"$f":"SUM(B26:J26)","v":1400}]
[]
[]
["Samlet mængde udleveret",{"$f":"SUM(B23:Q23)","v":138.57}]

{"sheet":"Ark2","index":1,"n_rows":12,"n_cols":6,"rows_kept":12,"cut":false,"hidden":true,"merged":[[6,1,6,3],[7,1,7,3],[8,1,8,3],[1,1,1,3],[2,1,2,3],[3,1,3,3],[4,1,4,3],[5,1,5,3]]}
[]
["Journalnummer"]
["Navn"]
["Adresse"]
["Postnr"]
["By"]
["P-nummer"]
["CVR-nummer"]
["Institutionsnr."]
[]
["Hvilken type ansøger er du?","Skole","Daginstitution","Leverandør","Kommune","Andet"]
["(Sæt kryds)"]

{"sheet":"Ansøgning om udbetaling","index":2,"n_rows":55,"n_cols":6,"rows_kept":55,"cut":false,"hidden":false,"merged":[[13,1,13,5],[54,0,54,5],[55,0,55,5],[48,0,48,5],[32,0,32,5],[33,0,33,5],[44,0,44,5],[45,0,45,3],[36,0,37,3],[38,0,39,3],[40,0,41,3],[35,0,35,5],[52,0,52,5],[19,1,19,5],[21,0,21,5],[49,0,49,3],[0,0,0,5],[1,0,1,5],[10,1,10,5],[12,1,12,5],[4,1,4,2],[5,1,5,2],[8,2,8,5],[9,2,9,5],[11,2,11,3],[4,3,5,5],[3,1,3,5],[51,0,51,5],[22,0,22,3],[24,0,24,5],[25,0,25,5],[27,0,27,5],[28,0,28,3],[29,0,29,3],[30,0,30,3],[23,0,23,3],[31,0,31,3],[46,0,46,3],[14,1,14,5],[15,1,15,5],[16,1,16,5],[17,1,17,5],[18,1,18,5]]}
["Ansøgning om udbetaling af tilskud til skolemælk, skoleåret 2024-2025\nUddannelsesinstitutioner\nLeverandører, organisationer og kommuner"]
["Hvilke faner skal du udfylde\nAnsøgningsskemaet består af 6 faner - ses nederst i vinduet.\n- Er du en uddannelsesinstitution, skal du udfylde 3 faner: 'Ansøgning om udbetaling', 'Bilagsoversigt' og 'Underskrift'. \n- Er du en kommune, leverandør eller organisation, skal du udfylde 4 faner: 'Ansøgning om udbetaling', 'Bilagsoversigt', 'Underskrift' og 'Deltagere, kun til leverandører'. \nDen 5. fane er en kalender, som du kan bruge til at beregne antallet af uddelingsdage.\nDen 6. fane angiver tilskudssatserne.\n\nHvilken fane skal du starte med\nStart med at udfylde fanen 'Ansøgning om udbetaling'. Denne fane indeholder stamoplysninger, som bliver overført til de øvrige faner.\n\nHvilke felter skal du udfylde\nUdfyld kun de hvide felter.\nBlå felter indeholder oplysende tekst og skal ikke udfyldes.\n\nHusk at underskrive ansøgningen\nSammen med din ansøgning skal vi have din underskrift. Du skriver under på fanen 'Underskrift'.\nÅben fanen 'Underskrift', påfør dato og afkryds hvilke bilag du medsender. Udskriv, underskriv, scan og medsend underskriften som PDF.\nBemærk, at det er den, der tegner ansøger juridisk, der skal underskrive ansøgningen.\n\nSådan sender du din ansøgning\nVi skal have ansøgningen i Excel-format og ikke som PDF. Sammen med din ansøgning skal vi have din underskrift, se beskrivelsen ovenfor.\nAnsøgning i Excel, underskrift i PDF, tilhørende bilag og eventuel billeddokumentation sender du på mail til projekttilskud@sgav.dk"]
[]
["J.nr.:"," 31206-25-???"]
["Uddelingsperiode:","01.08.2024 - 31.07.2025"]
["Sæt kryds"]
["Hvilken type ansøger er du?","Skole","Institution/\ndagtilbud","Kommune","Leverandør","Organisation"]
["Sæt kryds"]
[null,"Andet","Hvis 'andet', beskriv"]
["Sæt kryds og beskriv"]
["Ansøgers navn: "]
["Hvem tegner ansøger juridisk\nog har dermed bemyndigelse til at ansøge på vegne af ansøger:\nDenne person skal underskrive ansøgningen","Navn:",null,null,"Stilling:"]
["CVR-nr.:"]
["P-nr.:"]
["Adresse:"]
["Postnr.:"]
["By:"]
["Telefon:"]
["E-mail:"]
["Kontaktperson:"]
[]
["Læringsaktiviteter\nDu kan læse mere om krav til læringsaktiviteter i kapitel 6 i vejledningen, herunder eksempler på hvilke læringsaktiviteter vi kan godkende."]
["Vi har anvendt de læringsaktiviteter, Styrelsen stiller til rådighed.",null,null,null,"Ja","Nej"]
["Sæt kryds"]
["Hvis Nej, beskriv her hvilke aktiviteter I har gennemført i skoleåret 2024-2025: \n"]
[]
[]
["Produkter, der søges om tilskud til\nVi giver tilskud til mælk og laktosefrie udgaver heraf, som lever op til kravene under Fødevarestyrelsens nøglehulsmærke for mælk og syrnede produkter. Undtaget herfra er letmælk, som også er tilskudsberettiget.\n\nProdukterne må ikke være tilsat sukker, salt, fedt, sødemidler, kunstige smagsforstærkere eller kakao."]
["a) Lever de uddelte produkter op til kravene under Fødevarestyrelsens nøglehulsmærke?",null,null,null,"Ja","Nej"]
["Sæt kryds"]
["  b) Indeholder de uddelte produkter sukker, salt, fedt, sødemidler, kunstige    smagsforstærkere eller kakao?",null,null,null,"Ja","Nej"]
["Sæt kryds"]
["Beskriv her, hvordan har du sikret, at alle kravene er opfyldt?"]
[]
[]
["Uddelingen af mælk\n\nSkoler\nMælk uddelt på undervisningsdage, dvs. hverdage med aktiv skemalagt undervisning, er tilskudsberettiget.\nUddeling i weekender er ikke tilskudsberettiget, medmindre der er skemalagt undervisning med mødepligt for eleverne.\n\nInstitutioner og dagtilbud\nMælk uddelt på åbningsdage, dvs. hverdage hvor institutionen/dagtilbuddet er åben for pasning af børn , er tilskudsberettiget.\nUddeling i weekender er ikke tilskudsberettiget, medmindre det er dokumenteret, at institutionen/dagtilbuddet har været åben for pasning af børn.\n\nHusk dokumentation for antal undervisningsdage/åbningsdage\nVær opmærksom på, at du skal indsende dokumentation for antallet af undervisningsdage/åbningsdage, når du søger om udbetaling af tilskud.\nDu kan læse mere om denne dokumentation i afsnit 5.7 i vejledningen."]
["Den mælk, der søges om tilskud til, er udleveret til de tilmeldte børn:",null,null,null,"Ja","Nej"]
[]
["Den mælk, der søges om tilskud til, er uddelt på undervisningsdage på skoler og på åbningsdage i institutioner og dagtilbud:",null,null,null,"Ja","Nej"]
[]
["Er mælken, der søges om tilskud til, anvendt i tilberedningen af mad?",null,null,null,"Ja","Nej"]
[]
[]
[]
["Skiltning \nDet er et krav i EU-reglerne, at offentligheden skal oplyses om, at skoleordningen for mælk er støttet med EU-midler. Det kalder vi ’skiltning’. \nAlle uddannelsesinstitutioner, der søger om tilskud til skolmælk, er forpligtede til at skilte. \n\nPå forsiden af uddannelsesinstitutionens hjemmeside skal der skiltes om deltagelse i skoleordningen for skolemælk. \n\nSkiltning skal ske ved, at et link med teksten ”EU-skoleordningen” fremgår af hjemmesidens forside.\n\nDette link skal føre videre til en side, som er offentig tilgængelig, hvor et internetbanner fremgår med følgende oplysninger: \n• EU-flaget \n• Betegnelsen ”skoleordning” \n• Den økonomiske støtte fra EU, medmindre det er udelukket på grund af størrelsen på internetbanneret.\n\nVi stiller internetbanner gratis til rådighed. I finder internetbanneret på vores hjemmeside i Tilskudsguide under ordningen Skolemælk skoleår 2024/2025.\n\nVær opmærksom på at I kan læse mere om krav til skiltning i afsnit 4.5 i vejledningen."]
["Har skolen skiltet efter reglerne? \nSæt kryds\n",null,null,null,"Ja"]
["Indsæt direkte link til jeres hjemmeside hvor I har skiltet:",null,null,null,"Link"]
[]
["Udbudsregler\nPrivate ansøgere er ikke omfattet af udbudsreglerne, når det gælder varekøb. Private ansøgere på ordningen for skolemælk, der søger om tilskud til mælk, er derfor ikke omfattet af udbudsreglerne. Private ansøgere er fx leverandører, friskoler og efterskoler.\n\nOffentlige ansøgere er omfattet af udbudsreglerne, hvilket betyder, at de ved ethvert indkøb skal iagttage udbudslovens regler. Selvom vi udbetaler tilskuddet med udgangspunkt i standardomkostninger, ændrer det ikke på den offentlige myndigheds forpligtelse til at iagttage udbudslovens regler, ifm. indkøb af mælk som vi giver tilskud til. Offentlige ansøgere er fx kommuner og folkeskoler.\n\nLæs mere om udbudsreglerne i afsnit 10.1 i vejledningen.\n"]
["Er I en offentlig ansøger, der søger om tilskud til uddeling af mælk under skoleordningen?",null,null,null,"Ja","Nej"]
["Sæt kryds"]
["Hvis Ja, beskriv den procedure I har for at følge udbudsreglerne: \n"]
[]
[]
["Hvis Nej, begrund hvorfor:"]

{"sheet":"Ansøgning om udbetaling 4","index":3,"n_rows":22,"n_cols":5,"rows_kept":22,"cut":false,"hidden":true,"merged":[[19,0,20,2],[21,0,21,4],[22,0,22,4],[0,0,0,4],[1,0,1,4],[3,1,3,4],[18,0,18,4]]}
["Ansøgning om udbetaling af støtte til skolemælk\nKvartalsvis ansøgning"]
["\nVejledning\nNederst i vinduet ser du 5 faner. \n- Du skal udfylde 4 faner: 'Ansøgning om udbetaling', 'Bilagsoversigt', 'Skoler og institutioner' og 'Underskrift'. \n\nStart med at udfylde fanen 'Ansøgning om udbetaling'. Den indeholder stamoplysninger, som bliver overført til de øvrige faner.\nDen 5. fane er en kalender, der kan bruges til at beregne antallet af uddelingsdage.\nNår alle relevante faner er udfyldt, er du klar til at indsende din ansøgning. \n\nIndsendelse\nVi skal have selve ansøgningen i Excel-format og ikke som PDF.\nSammen med din ansøgning skal vi have din underskrift. \nÅben fanen 'Underskrift' - udskriv, underskriv, scan og medsend som PDF.\nAnsøgning og underskrift indsendes på mail til projekttilskud@lfst.dk"]
["Klik her for at underskrive din anmodning om udbetaling."]
["Journalnummer: ","31206-17-"]
["Ansøgningsperiode:","01.08.2017 - 31.10.2017","01.11.2017 - 31.01.2018","01.02.2018 - 30.04.2018","01.05.2018 - 31.07.2018"]
["Sæt kryds"]
["Hvilken type ansøger er du?","Leverandør","Organisation","Andet","Hvad ?"]
["Sæt kryds"]
["CVR.nr.:"]
["P-nr.: "]
["Navn: "]
["Adresse.:"]
["Postnr.:"]
["By:"]
["Telefon:"]
["E-mail:"]
["Kontaktperson:"]
[]
["Ledsageforanstaltninger\nFra og med dette skoleår, er det en betingelse for at deltage i skoleordningen for frugt og grønt samt mælk og mejeriprodukter, at du iværksætter ledsageforanstaltninger. Ved en ledsageforanstaltning forstås et tiltag eller en aktivitet, der skal fremme elevernes viden om ernæring, sundhed, landbrug, herunder også økologi.\nLedsageforanstaltninger iværksættes for at opnå bedre muligheder for langsigtede resultater og ændre elevernes kostvaner. Læs mere under Vejledningens punkt 6.8."]
["Vi har anvendt de ledsageforanstaltninger Landbrugs- og Fiskeristyrelsen har stillet til rådighed.\nHvis du svarer nej, skal du herunder beskrive hvilke andre ledsageforanstaltninger, der er anvendt. ",null,null,"Ja","Nej"]
[]
["Vi har selv iværksat ledsageforanstaltninger \n(Beskriv hvilken aktivitet I har gennemført eller hvad I har iværksat)"]

{"sheet":"Deltagere, kun til leverandører","index":4,"n_rows":6,"n_cols":12,"rows_kept":6,"cut":false,"hidden":false,"merged":[[0,0,0,1],[3,0,3,1],[2,0,2,1],[0,6,0,9],[0,4,0,5]]}
["Journalnummer: \n(Udfyldes automatisk fra fanen 'Ansøgning om udbetaling')",null,{"$f":"'Ansøgning om udbetaling'!B4","v":" 31206-25-???"},null,"Deltagere",null,"Denne fane skal kun udfyldes af ansøgere, som er leverandører, organisationer eller kommuner.\n\nDu skal kun udfylde de hvide felter.\nI grå felter overføres data automatisk. \nI gule felter sker beregningen automatisk. \nDe blå felter indeholder oplysende tekst."]
[]
["Sum \nAntal børn, der er indskrevet i begyndelsen af \nskoleår 2024-2025:\n(Beregnes automatisk som sum af kolonne K)",null,{"$f":"SUM(K6:K36)","v":0}]
["Sum \nAntal børn, der har deltaget i skolemælksordningen i skoleåret 2024-2025:\n(Beregnes automatisk som sum af kolonne L)",null,{"$f":"SUM(L7:L36)","v":0}]
[]
["Nummer","Navn på uddannelsesinstitution","Adresse","Postnr.","By","Kontaktperson","E-mail","Telefonnr.","CVR-nr.","P-nr.","Antal børn, der er indskrevet i begyndelsen af skoleår 2024-2025:","Antal børn, der har deltaget i skolemælksordningen i skoleåret 2024-2025:"]

{"sheet":"Underskrift","index":5,"n_rows":18,"n_cols":5,"rows_kept":18,"cut":false,"hidden":false,"merged":[[16,0,16,3],[22,0,22,3],[19,0,19,3],[20,0,20,3],[21,0,21,3],[17,0,17,3],[18,0,18,3],[5,0,5,4],[6,0,6,4],[13,0,13,3],[14,0,14,3],[15,0,15,3],[9,0,9,4],[10,2,10,4],[11,2,11,4],[7,2,8,4],[0,0,0,4],[1,0,1,4],[2,0,2,4],[3,0,3,4],[4,0,4,4]]}
["Ansøgers underskrift\nVær opmærksom på at underskrive og scanne siden.\nDu skal kun udfylde de hvide felter. I de grå felter overføres data automatisk. De blå felter indeholder oplysende tekst."]
["Journalnummer:  (Udfyldes automatisk fra fanen 'Ansøgning om udbetaling')"]
[{"$f":"'Ansøgning om udbetaling'!B4","v":" 31206-25-???"}]
["Navn:  (Udfyldes automatisk fra fanen 'Ansøgning om udbetaling')"]
[{"$f":"'Ansøgning om udbetaling'!B11","v":0}]
["CVR nr.:  (Udfyldes automatisk fra fanen 'Ansøgning om udbetaling')"]
[{"$f":"'Ansøgning om udbetaling'!B13","v":0}]
["Uddelingsperiode","01.08.2024 - 31.07.2025"]
["Sæt kryds"]
["Hvis ansøger er en uddannelsesinstitution: \n- Jeg bekræfter med min underskrift, at de afgivne oplysninger er korrekte.\n- Jeg erklærer, at uddannelsesinstitutionen har opfyldt sine forpligtelser jf. §16 i BEK nr. 850 af 27/06/2024 om tilskud til skolemælk i skoleåret 2024-2025.\n\nHvis ansøger er en leverandør, kommune eller organisation:\n- Jeg bekræfter med min underskrift, at de afgivne oplysninger er korrekte.\n- Jeg erklærer, at vi har opfyldt vores forpligtelser jf. §16 og §17 i BEK nr. 850 af 27/06/2024 om tilskud til skolemælk i skoleåret 2024-2025.\n\n"]
["Dato:","Navn på den der underskriver:","Underskrift:"]
[]
[]
["Oversigt over bilag:",null,null,null,"Sæt kryds"]
["Kopi af leveringslister                                                                                         "]
["Kvitteringsskemaer fra uddannelsesinstitutionerne\nHvis ansøger er en leverandør, organisation eller kommune, skal uddannelsesinstitutionerne sende kvitteringsskemaer direkte til styrelsen. Vi kan dog godkende, at ansøger sender anden dokumentation for oplysningerne i kvitteringsskemaet."]
["Kopi af evt. gennemført udbud"]
["Andet:      "]

{"sheet":"Bilagsoversigt","index":6,"n_rows":137,"n_cols":22,"rows_kept":137,"cut":false,"hidden":false,"merged":[[0,0,0,7],[2,0,2,3],[2,4,2,5],[5,0,5,4],[4,0,4,4],[11,2,11,11],[13,6,13,7],[12,4,12,5],[14,6,14,7],[10,0,10,4],[15,6,15,7],[16,6,16,7],[12,6,12,8],[136,0,136,1],[9,0,9,4],[7,0,7,4],[8,0,8,4],[6,0,6,4],[134,0,134,1],[12,2,12,3],[23,6,23,7],[24,6,24,7],[25,6,25,7],[26,6,26,7],[17,6,17,7],[18,6,18,7],[19,6,19,7],[20,6,20,7],[21,6,21,7],[32,6,32,7],[33,6,33,7],[34,6,34,7],[35,6,35,7],[36,6,36,7],[27,6,27,7],[28,6,28,7],[29,6,29,7],[30,6,30,7],[31,6,31,7],[49,6,49,7],[50,6,50,7],[51,6,51,7],[42,6,42,7],[43,6,43,7],[44,6,44,7],[45,6,45,7],[46,6,46,7],[37,6,37,7],[38,6,38,7],[39,6,39,7],[40,6,40,7],[41,6,41,7],[57,6,57,7],[58,6,58,7],[59,6,59,7],[60,6,60,7],[61,6,61,7],[52,6,52,7],[53,6,53,7],[54,6,54,7],[55,6,55,7],[56,6,56,7],[67,6,67,7],[68,6,68,7],[69,6,69,7],[70,6,70,7],[62,6,62,7],[63,6,63,7],[64,6,64,7],[65,6,65,7],[66,6,66,7],[76,6,76,7],[77,6,77,7],[78,6,78,7],[79,6,79,7],[80,6,80,7],[71,6,71,7],[72,6,72,7],[73,6,73,7],[74,6,74,7],[75,6,75,7],[86,6,86,7],[87,6,87,7],[88,6,88,7],[89,6,89,7],[90,6,90,7],[81,6,81,7],[82,6,82,7],[83,6,83,7],[84,6,84,7],[85,6,85,7],[96,6,96,7],[97,6,97,7],[98,6,98,7],[99,6,99,7],[100,6,100,7],[91,6,91,7],[92,6,92,7],[93,6,93,7],[94,6,94,7],[95,6,95,7],[115,6,115,7],[106,6,106,7],[107,6,107,7],[108,6,108,7],[109,6,109,7],[110,6,110,7],[101,6,101,7],[102,6,102,7],[103,6,103,7],[104,6,104,7],[105,6,105,7],[26,9,26,10],[27,9,27,10],[28,9,28,10],[30,9,30,10],[132,6,132,7],[134,6,134,7],[126,6,126,7],[127,6,127,7],[129,6,129,7],[130,6,130,7],[121,6,121,7],[122,6,122,7],[123,6,123,7],[124,6,124,7],[125,6,125,7],[116,6,116,7],[117,6,117,7],[118,6,118,7],[119,6,119,7],[120,6,120,7],[111,6,111,7],[112,6,112,7],[113,6,113,7],[114,6,114,7],[36,9,36,10],[37,9,37,10],[38,9,38,10],[39,9,39,10],[40,9,40,10],[31,9,31,10],[32,9,32,10],[33,9,33,10],[34,9,34,10],[35,9,35,10],[46,9,46,10],[47,9,47,10],[48,9,48,10],[49,9,49,10],[50,9,50,10],[41,9,41,10],[42,9,42,10],[43,9,43,10],[44,9,44,10],[45,9,45,10],[56,9,56,10],[57,9,57,10],[58,9,58,10],[59,9,59,10],[60,9,60,10],[51,9,51,10],[52,9,52,10],[53,9,53,10],[54,9,54,10],[55,9,55,10],[70,9,70,10],[71,9,71,10],[72,9,72,10],[73,9,73,10],[74,9,74,10],[67,9,67,10],[68,9,68,10],[69,9,69,10],[61,9,61,10],[62,9,62,10],[63,9,63,10],[64,9,64,10],[65,9,65,10],[80,9,80,10],[81,9,81,10],[82,9,82,10],[83,9,83,10],[84,9,84,10],[75,9,75,10],[76,9,76,10],[77,9,77,10],[78,9,78,10],[90,9,90,10],[91,9,91,10],[92,9,92,10],[93,9,93,10],[94,9,94,10],[85,9,85,10],[86,9,86,10],[87,9,87,10],[88,9,88,10],[89,9,89,10],[100,9,100,10],[101,9,101,10],[102,9,102,10],[103,9,103,10],[104,9,104,10],[95,9,95,10],[96,9,96,10],[97,9,97,10],[98,9,98,10],[99,9,99,10],[110,9,110,10],[111,9,111,10],[112,9,112,10],[113,9,113,10],[114,9,114,10],[105,9,105,10],[106,9,106,10],[107,9,107,10],[108,9,108,10],[109,9,109,10],[120,9,120,10],[121,9,121,10],[122,9,122,10],[123,9,123,10],[124,9,124,10],[115,9,115,10],[116,9,116,10],[117,9,117,10],[118,9,118,10],[119,9,119,10],[130,9,130,10],[131,9,131,10],[132,9,132,10],[133,9,133,10],[134,9,134,10],[125,9,125,10],[126,9,126,10],[127,9,127,10],[128,9,128,10],[129,9,129,10],[6,15,6,17],[6,10,6,12],[25,9,25,10],[24,9,24,10],[23,9,23,10],[22,9,22,10],[21,9,21,10],[20,9,20,10],[19,9,19,10],[18,9,18,10],[17,9,17,10],[16,9,16,10],[15,9,15,10],[12,9,12,11],[12,12,12,13],[12,14,12,15],[12,16,12,18],[12,19,12,21],[13,16,13,17],[11,12,11,21],[9,15,9,17],[9,10,9,12],[8,15,8,17],[8,10,8,12],[7,15,7,17],[7,10,7,12]]}
["Bilagsoversigt\nOversigt over den udleverede skolemælk og de tilhørende leveringslister\n\nDu skal kun udfylde de hvide felter.\nI grå og gule felter sker automatisk overførsel af data eller automatisk beregning. \nRøde og blå felter indeholder oplysende tekst."]
[]
["Journalnummer: \n(Udfyldes automatisk fra fanen 'Ansøgning om udbetaling')",null,null,null,{"$f":"'Ansøgning om udbetaling'!B4","v":" 31206-25-???"}]
[]
["Antal uddelingsdage"]
["Antal børn, der er indskrevet i begyndelsen af skoleår 2024-2025",null,null,null,null,{"$f":"'Deltagere, kun til leverandører'!C3","v":0}]
["Antal børn, der har deltaget i skolemælksordningen i skoleåret 2024-2025",null,null,null,null,{"$f":"'Deltagere, kun til leverandører'!C4","v":0}]
["Antal udleverede enheder i alt  (Faktisk udleveret)\nOverføres automatisk som summen af enheder fra bilagslisten.",null,null,null,null,{"$f":"D135+F135+I135+L135+N135+P135+S135+V135","v":0}]
["Maksimalt antal enheder der kan udleveres  (Tilskudsloft)\nSom er 0,25 liter pr. barn pr. dag",null,null,null,null,{"$f":"F7*F5","v":0}]
["Antal enheder der søges om tilskud til",null,null,null,null,{"$f":"IF(F8>F9,F9,F8)","v":0}]
["Antal liter der søges om tilskud til",null,null,null,null,{"$f":"F10/4","v":0}]
["Bilagsnr./Referencenr.",null,"Konsummælk",null,null,null,null,null,null,null,null,null,"Kærnemælk"]
[null,null,"Konventionel konsummælk\nUddelt i karton af 0,25 liter",null,"Konventionel konsummælk\nUddelt fra stor beholder\n(1 liter eller større)",null,"Økologisk konsummælk\nUddelt i karton af 0,25 liter",null,null,"Økologisk konsummælk\nUddelt fra stor beholder\n(1 liter eller større)",null,null,"Konventionel kærnemælk\nUddelt i karton af 0,25 liter",null,"Konventionel kærnemælk\nUddelt fra stor beholder\n(1 liter eller større)",null,"Økologisk kærnemælk\nUddelt i karton af 0,25 liter",null,null,"Økologisk kærnemælk\nUddelt fra stor beholder\n(1 liter eller større)"]
["Nr.","Referencenr.","Antal liter","Enheder udleveret\nBeregnes automatisk, 1 enhed er 0,25 liter","Antal liter","Enheder udleveret\nBeregnes automatisk, 1 enhed er 0,25 liter","Antal liter",null,"Enheder udleveret\nBeregnes automatisk, 1 enhed er 0,25 liter","Antal liter","Pris ex. Moms","Enheder udleveret\nBeregnes automatisk, 1 enhed er 0,25 liter","Antal liter","Enheder udleveret\nBeregnes automatisk, 1 enhed er 0,25 liter","Antal liter","Enheder udleveret\nBeregnes automatisk, 1 enhed er 0,25 liter","Antal liter",null,"Enheder udleveret\nBeregnes automatisk, 1 enhed er 0,25 liter","Antal liter","Pris ex. Moms","Enheder udleveret\nBeregnes automatisk, 1 enhed er 0,25 liter"]
[1,null,null,{"$f":"C15/$C$137","v":0},null,{"$f":"E15/$E$137","v":0},null,null,{"$f":"G15/$H$137","v":0},null,null,{"$f":"J15/$K$137","v":0},null,{"$f":"M15/$K$137","v":0},null,{"$f":"O15/$K$137","v":0},null,null,{"$f":"Q15/$K$137","v":0},null,null,{"$f":"T15/$K$137","v":0}]
[2,null,null,0,null,0,null,null,0,null,null,0,null,0,null,0,null,null,0,null,null,0]
[3,null,null,0,null,0,null,null,0,null,null,0,null,0,null,0,null,null,0,null,null,0]
[4,null,null,0,null,0,null,null,0,null,null,0,null,0,null,0,null,null,0,null,null,0]
[5,null,null,0,null,0,null,null,0,null,null,0,null,0,null,0,null,null,0,null,null,0]
["osv.",null,null,0,null,0,null,null,0,null,null,0,null,0,null,0,null,null,0,null,null,0]
[null,null,null,0,null,0,null,null,0,null,null,0,null,0,null,0,null,null,0,null,null,0]
[null,null,null,0,null,0,null,null,0,null,null,0,null,0,null,0,null,null,0,null,null,0]
[null,null,null,0,null,0,null,null,0,null,null,0,null,0,null,0,null,null,0,null,null,0]
[null,null,null,0,null,0,null,null,0,null,null,0,null,0,null,0,null,null,0,null,null,0]
[null,null,null,0,null,0,null,null,0,null,null,0,null,0,null,0,null,null,0,null,null,0]
[null,null,null,0,null,0,null,null,0,null,null,0,null,0,null,0,null,null,0,null,null,0]
[null,null,null,0,null,0,null,null,0,null,null,0,null,0,null,0,null,null,0,null,null,0]
[null,null,null,0,null,0,null,null,0,null,null,0,null,0,null,0,null,null,0,null,null,0]
[null,null,null,0,null,0,null,null,0,null,null,0,null,0,null,0,null,null,0,null,null,0]
[null,null,null,0,null,0,null,null,0,null,null,0,null,0,null,0,null,null,0,null,null,0]
[null,null,null,0,null,0,null,null,0,null,null,0,null,0,null,0,null,null,0,null,null,0]
[null,null,null,0,null,0,null,null,0,null,null,0,null,0,null,0,null,null,0,null,null,0]
[null,null,null,0,null,0,null,null,0,null,null,0,null,0,null,0,null,null,0,null,null,0]
[null,null,null,0,null,0,null,null,0,null,null,0,null,0,null,0,null,null,0,null,null,0]
[null,null,null,0,null,0,null,null,0,null,null,0,null,0,null,0,null,null,0,null,null,0]
[null,null,null,0,null,0,null,null,0,null,null,0,null,0,null,0,null,null,0,null,null,0]
[null,null,null,0,null,0,null,null,0,null,null,0,null,0,null,0,null,null,0,null,null,0]
[null,null,null,0,null,0,null,null,0,null,null,0,null,0,null,0,null,null,0,null,null,0]
[null,null,null,0,null,0,null,null,0,null,null,0,null,0,null,0,null,null,0,null,null,0]
[null,null,null,0,null,0,null,null,0,null,null,0,null,0,null,0,null,null,0,null,null,0]
[null,null,null,0,null,0,null,null,0,null,null,0,null,0,null,0,null,null,0,null,null,0]
[null,null,null,0,null,0,null,null,0,null,null,0,null,0,null,0,null,null,0,null,null,0]
[null,null,null,0,null,0,null,null,0,null,null,0,null,0,null,0,null,null,0,null,null,0]
[null,null,null,0,null,0,null,null,0,null,null,0,null,0,null,0,null,null,0,null,null,0]
[null,null,null,0,null,0,null,null,0,null,null,0,null,0,null,0,null,null,0,null,null,0]
[null,null,null,0,null,0,null,null,0,null,null,0,null,0,null,0,null,null,0,null,null,0]
[null,null,null,{"$f":"C47/$C$137","v":0},null,{"$f":"E47/$E$137","v":0},null,null,{"$f":"G47/$H$137","v":0},null,null,{"$f":"J47/$K$137","v":0},null,{"$f":"M47/$K$137","v":0},null,{"$f":"O47/$K$137","v":0},null,null,{"$f":"Q47/$K$137","v":0},null,null,{"$f":"T47/$K$137","v":0}]
[null,null,null,0,null,0,null,null,0,null,null,0,null,0,null,0,null,null,0,null,null,0]
[null,null,null,0,null,0,null,null,0,null,null,0,null,0,null,0,null,null,0,null,null,0]
[null,null,null,0,null,0,null,null,0,null,null,0,null,0,null,0,null,null,0,null,null,0]
[null,null,null,0,null,0,null,null,0,null,null,0,null,0,null,0,null,null,0,null,null,0]
[null,null,null,0,null,0,null,null,0,null,null,0,null,0,null,0,null,null,0,null,null,0]
[null,null,null,0,null,0,null,null,0,null,null,0,null,0,null,0,null,null,0,null,null,0]
[null,null,null,0,null,0,null,null,0,null,null,0,null,0,null,0,null,null,0,null,null,0]
[null,null,null,0,null,0,null,null,0,null,null,0,null,0,null,0,null,null,0,null,null,0]
[null,null,null,0,null,0,null,null,0,null,null,0,null,0,null,0,null,null,0,null,null,0]
[null,null,null,0,null,0,null,null,0,null,null,0,null,0,null,0,null,null,0,null,null,0]
[null,null,null,0,null,0,null,null,0,null,null,0,null,0,null,0,null,null,0,null,null,0]
[null,null,null,0,null,0,null,null,0,null,null,0,null,0,null,0,null,null,0,null,null,0]
[null,null,null,0,null,0,null,null,0,null,null,0,null,0,null,0,null,null,0,null,null,0]
[null,null,null,0,null,0,null,null,0,null,null,0,null,0,null,0,null,null,0,null,null,0]
[null,null,null,0,null,0,null,null,0,null,null,0,null,0,null,0,null,null,0,null,null,0]
[null,null,null,0,null,0,null,null,0,null,null,0,null,0,null,0,null,null,0,null,null,0]
[null,null,null,0,null,0,null,null,0,null,null,0,null,0,null,0,null,null,0,null,null,0]
[null,null,null,0,null,0,null,null,0,null,null,0,null,0,null,0,null,null,0,null,null,0]
[null,null,null,0,null,0,null,null,0,null,null,0,null,0,null,0,null,null,0,null,null,0]
[null,null,null,0,null,0,null,null,0,null,null,0,null,0,null,0,null,null,0,null,null,0]
[null,null,null,0,null,0,null,null,0,null,null,0,null,0,null,0,null,null,0,null,null,0]
[null,null,null,0,null,0,null,null,0,null,null,0,null,0,null,0,null,null,0,null,null,0]
[null,null,null,0,null,0,null,null,0,null,null,0,null,0,null,0,null,null,0,null,null,0]
[null,null,null,0,null,0,null,null,0,null,null,0,null,0,null,0,null,null,0,null,null,0]
[null,null,null,0,null,0,null,null,0,null,null,0,null,0,null,0,null,null,0,null,null,0]
[null,null,null,0,null,0,null,null,0,null,null,0,null,0,null,0,null,null,0,null,null,0]
[null,null,null,0,null,0,null,null,0,null,null,0,null,0,null,0,null,null,0,null,null,0]
[null,null,null,0,null,0,null,null,0,null,null,0,null,0,null,0,null,null,0,null,null,0]
[null,null,null,0,null,0,null,null,0,null,null,0,null,0,null,0,null,null,0,null,null,0]
[null,null,null,0,null,0,null,null,0,null,null,0,null,0,null,0,null,null,0,null,null,0]
[null,null,null,{"$f":"C78/$C$137","v":0},null,{"$f":"E78/$E$137","v":0},null,null,{"$f":"G78/$H$137","v":0},null,null,{"$f":"J78/$K$137","v":0},null,0,null,0,null,null,0,null,null,0]
[null,null,null,0,null,0,null,null,0,null,null,0,null,{"$f":"M79/$K$137","v":0},null,0,null,null,{"$f":"Q79/$K$137","v":0},null,null,{"$f":"T79/$K$137","v":0}]
[null,null,null,0,null,0,null,null,0,null,null,0,null,0,null,0,null,null,0,null,null,0]
[null,null,null,0,null,0,null,null,0,null,null,0,null,0,null,0,null,null,0,null,null,0]
[null,null,null,0,null,0,null,null,0,null,null,0,null,0,null,0,null,null,0,null,null,0]
[null,null,null,0,null,0,null,null,0,null,null,0,null,0,null,0,null,null,0,null,null,0]
[null,null,null,0,null,0,null,null,0,null,null,0,null,0,null,0,null,null,0,null,null,0]
[null,null,null,0,null,0,null,null,0,null,null,0,null,0,null,0,null,null,0,null,null,0]
[null,null,null,0,null,0,null,null,0,null,null,0,null,0,null,0,null,null,0,null,null,0]
[null,null,null,0,null,0,null,null,0,null,null,0,null,0,null,0,null,null,0,null,null,0]
[null,null,null,0,null,0,null,null,0,null,null,0,null,0,null,0,null,null,0,null,null,0]
[null,null,null,0,null,0,null,null,0,null,null,0,null,0,null,0,null,null,0,null,null,0]
[null,null,null,0,null,0,null,null,0,null,null,0,null,0,null,0,null,null,0,null,null,0]
[null,null,null,0,null,0,null,null,0,null,null,0,null,0,null,0,null,null,0,null,null,0]
[null,null,null,0,null,0,null,null,0,null,null,0,null,0,null,0,null,null,0,null,null,0]
[null,null,null,0,null,0,null,null,0,null,null,0,null,0,null,0,null,null,0,null,null,0]
[null,null,null,0,null,0,null,null,0,null,null,0,null,0,null,0,null,null,0,null,null,0]
[null,null,null,0,null,0,null,null,0,null,null,0,null,0,null,0,null,null,0,null,null,0]
[null,null,null,0,null,0,null,null,0,null,null,0,null,0,null,0,null,null,0,null,null,0]
[null,null,null,0,null,0,null,null,0,null,null,0,null,0,null,0,null,null,0,null,null,0]
[null,null,null,0,null,0,null,null,0,null,null,0,null,0,null,0,null,null,0,null,null,0]
[null,null,null,0,null,0,null,null,0,null,null,0,null,0,null,0,null,null,0,null,null,0]
[null,null,null,0,null,0,null,null,0,null,null,0,null,0,null,0,null,null,0,null,null,0]
[null,null,null,0,null,0,null,null,0,null,null,0,null,0,null,0,null,null,0,null,null,0]
[null,null,null,0,null,0,null,null,0,null,null,0,null,0,null,0,null,null,0,null,null,0]
[null,null,null,0,null,0,null,null,0,null,null,0,null,0,null,0,null,null,0,null,null,0]
[null,null,null,0,null,0,null,null,0,null,null,0,null,0,null,0,null,null,0,null,null,0]
[null,null,null,0,null,0,null,null,0,null,null,0,null,0,null,0,null,null,0,null,null,0]
[null,null,null,0,null,0,null,null,0,null,null,0,null,0,null,0,null,null,0,null,null,0]
[null,null,null,0,null,0,null,null,0,null,null,0,null,0,null,0,null,null,0,null,null,0]
[null,null,null,0,null,0,null,null,0,null,null,0,null,0,null,0,null,null,0,null,null,0]
[null,null,null,0,null,0,null,null,0,null,null,0,null,0,null,0,null,null,0,null,null,0]
[null,null,null,{"$f":"C110/$C$137","v":0},null,{"$f":"E110/$E$137","v":0},null,null,{"$f":"G110/$H$137","v":0},null,null,{"$f":"J110/$K$137","v":0},null,0,null,0,null,null,0,null,null,0]
[null,null,null,0,null,0,null,null,0,null,null,0,null,0,null,0,null,null,0,null,null,0]
[null,null,null,0,null,0,null,null,0,null,null,0,null,0,null,0,null,null,0,null,null,0]
[null,null,null,0,null,0,null,null,0,null,null,0,null,0,null,0,null,null,0,null,null,0]
[null,null,null,0,null,0,null,null,0,null,null,0,null,0,null,0,null,null,0,null,null,0]
[null,null,null,0,null,0,null,null,0,null,null,0,null,0,null,0,null,null,0,null,null,0]
[null,null,null,0,null,0,null,null,0,null,null,0,null,0,null,0,null,null,0,null,null,0]
[null,null,null,0,null,0,null,null,0,null,null,0,null,0,null,0,null,null,0,null,null,0]
[null,null,null,0,null,0,null,null,0,null,null,0,null,0,null,0,null,null,0,null,null,0]
[null,null,null,0,null,0,null,null,0,null,null,0,null,0,null,0,null,null,0,null,null,{"$f":"T119/$K$137","v":0}]
[null,null,null,0,null,0,null,null,0,null,null,0,null,0,null,0,null,null,0,null,null,0]
[null,null,null,0,null,0,null,null,0,null,null,0,null,0,null,0,null,null,0,null,null,0]
[null,null,null,0,null,0,null,null,0,null,null,0,null,0,null,0,null,null,0,null,null,0]
[null,null,null,0,null,0,null,null,0,null,null,0,null,0,null,0,null,null,0,null,null,0]
[null,null,null,0,null,0,null,null,0,null,null,0,null,0,null,0,null,null,0,null,null,0]
[null,null,null,0,null,0,null,null,0,null,null,0,null,0,null,0,null,null,0,null,null,0]
[null,null,null,0,null,0,null,null,0,null,null,0,null,0,null,0,null,null,0,null,null,0]
[null,null,null,0,null,0,null,null,0,null,null,0,null,0,null,0,null,null,{"$f":"Q127/$K$137","v":0},null,null,0]
[null,null,null,0,null,0,null,null,0,null,null,0,null,0,null,0,null,null,0,null,null,0]
[null,null,null,0,null,0,null,null,0,null,null,0,null,0,null,{"$f":"O129/$K$137","v":0},null,null,0,null,null,0]
[null,null,null,0,null,0,null,null,0,null,null,0,null,0,null,0,null,null,0,null,null,0]
[null,null,null,0,null,0,null,null,0,null,null,0,null,0,null,0,null,null,0,null,null,0]
[null,null,null,0,null,0,null,null,0,null,null,0,null,0,null,0,null,null,0,null,null,0]
[null,null,null,0,null,0,null,null,0,null,null,0,null,0,null,0,null,null,0,null,null,0]
[null,null,null,0,null,0,null,null,0,null,null,0,null,0,null,0,null,null,0,null,null,0]
["Totalt udleveret",null,{"$f":"SUM(C15:C134)","v":0},{"$f":"SUM(D15:D134)","v":0},{"$f":"SUM(E15:E134)","v":0},{"$f":"SUM(F15:F134)","v":0},{"$f":"SUM(G15:G134)","v":0},null,{"$f":"SUM(I15:I134)","v":0},{"$f":"SUM(J15:J134)","v":0},null,{"$f":"SUM(L15:L134)","v":0},{"$f":"SUM(M15:M134)","v":0},0,0,0,0,0,0,0,0,0]
[]
["Maks mængde (liter) pr. barn pr. dag",null,0.25,null,0.25,null,0.25,0.25,null,0.25,0.25,null,0.25,null,0.25,null,0.25,null,null,0.25]

{"sheet":"Kalender","index":7,"n_rows":41,"n_cols":48,"rows_kept":41,"cut":false,"hidden":false,"merged":[[48,0,48,3],[48,4,48,23],[49,0,49,3],[49,4,49,23],[50,0,50,3],[50,4,50,23],[45,0,45,3],[45,4,45,23],[46,0,46,3],[46,4,46,23],[47,0,47,3],[47,4,47,23],[42,0,42,3],[42,4,42,23],[43,0,43,3],[43,4,43,23],[44,0,44,3],[44,4,44,23],[1,44,1,47],[37,45,37,47],[39,0,39,23],[40,0,40,3],[40,4,40,23],[1,32,1,35],[1,36,1,39],[1,40,1,43],[41,0,41,3],[41,4,41,23],[1,20,1,23],[1,24,1,27],[1,28,1,31],[0,0,0,19],[1,0,1,3],[1,4,1,7],[1,8,1,11],[1,12,1,15],[1,16,1,19]]}
["Beregn antallet af uddelingsdage\nMarker dage med uddeling af skolemælk med x i de grønne felter.\nKalenderen tæller antal dage pr. måned og lægger sammen for hele skoleåret 2024-2025\n(1. august 2024 til 31. juli 2025) i det gule felt.\n\n"]
["2024-08-01",null,null,null,"2024-09-01",null,null,null,"2024-10-01",null,null,null,"2024-11-01",null,null,null,"2024-12-01",null,null,null,"2025-01-01",null,null,null,"2025-02-01",null,null,null,"2025-03-01",null,null,null,"2025-04-01",null,null,null,"2025-05-01",null,null,null,"2025-06-01",null,null,null,"2025-07-01"]
["T 1",null,31,null,"S 1",null,35,null,"T 1",null,40,null,"F 1",null,44,null,"S 1",null,48,null,"O 1","Nytårsdag",1,null,"L 1",null,5,null,"L 1",null,9,null,"T 1",null,14,null,"T 1",null,18,null,"S 1",null,null,null,"T 1",null,27]
["F 2",null,null,null,"M 2",null,36,null,"O 2",null,null,null,"L 2",null,null,null,"M 2",null,49,null,"T 2",null,null,null,"S 2",null,null,null,"S 2",null,null,null,"O 2",null,null,null,"F 2",null,null,null,"M 2",null,23,null,"O 2"]
["L 3",null,null,null,"T 3",null,null,null,"T 3",null,null,null,"S 3",null,null,null,"T 3",null,null,null,"F 3",null,null,null,"M 3",null,6,null,"M 3",null,10,null,"T 3",null,null,null,"L 3",null,null,null,"T 3",null,null,null,"T 3"]
["S 4",null,null,null,"O 4",null,null,null,"F 4",null,null,null,"M 4",null,45,null,"O 4",null,null,null,"L 4",null,null,null,"T 4",null,null,null,"T 4",null,null,null,"F 4",null,null,null,"S 4",null,null,null,"O 4",null,null,null,"F 4"]
["M 5",null,32,null,"T 5",null,null,null,"L 5",null,null,null,"T 5",null,null,null,"T 5",null,null,null,"S 5",null,null,null,"O 5",null,null,null,"O 5",null,null,null,"L 5",null,null,null,"M 5",null,19,null,"T 5","Grundlovsdag",null,null,"L 5"]
["T 6",null,null,null,"F 6",null,null,null,"S 6",null,null,null,"O 6",null,null,null,"F 6",null,null,null,"M 6",null,2,null,"T 6",null,null,null,"T 6",null,null,null,"S 6",null,null,null,"T 6",null,null,null,"F 6",null,null,null,"S 6"]
["O 7",null,null,null,"L 7",null,null,null,"M 7",null,41,null,"T 7",null,null,null,"L 7",null,null,null,"T 7",null,null,null,"F 7",null,null,null,"F 7",null,null,null,"M 7",null,15,null,"O 7",null,null,null,"L 7",null,null,null,"M 7",null,28]
["T 8",null,null,null,"S 8",null,null,null,"T 8",null,null,null,"F 8",null,null,null,"S 8",null,null,null,"O 8",null,null,null,"L 8",null,null,null,"L 8",null,null,null,"T 8",null,null,null,"T 8",null,null,null,"S 8","Pinsedag",null,null,"T 8"]
["F 9",null,null,null,"M 9",null,37,null,"O 9",null,null,null,"L 9",null,null,null,"M 9",null,50,null,"T 9",null,null,null,"S 9",null,null,null,"S 9",null,null,null,"O 9",null,null,null,"F 9",null,null,null,"M 9","2. Pinsedag",null,null,"O 9"]
["L 10",null,null,null,"T 10",null,null,null,"T 10",null,null,null,"S 10",null,null,null,"T 10",null,null,null,"F 10",null,null,null,"M 10",null,7,null,"M 10",null,11,null,"T 10",null,null,null,"L 10",null,null,null,"T 10",null,24,null,"T 10"]
["S 11",null,null,null,"O 11",null,null,null,"F 11",null,null,null,"M 11",null,46,null,"O 11",null,null,null,"L 11",null,null,null,"T 11",null,null,null,"T 11",null,null,null,"F 11",null,null,null,"S 11",null,null,null,"O 11",null,null,null,"F 11"]
["M 12",null,33,null,"T 12",null,null,null,"L 12",null,null,null,"T 12",null,null,null,"T 12",null,null,null,"S 12",null,null,null,"O 12",null,null,null,"O 12",null,null,null,"L 12",null,null,null,"M 12",null,20,null,"T 12",null,null,null,"L 12"]
["T 13",null,null,null,"F 13",null,null,null,"S 13",null,null,null,"O 13",null,null,null,"F 13",null,null,null,"M 13",null,3,null,"T 13",null,null,null,"T 13",null,null,null,"S 13",null,null,null,"T 13",null,null,null,"F 13",null,null,null,"S 13"]
["O 14",null,null,null,"L 14",null,null,null,"M 14",null,42,null,"T 14",null,null,null,"L 14",null,null,null,"T 14",null,null,null,"F 14",null,null,null,"F 14",null,null,null,"M 14",null,16,null,"O 14",null,null,null,"L 14",null,null,null,"M 14",null,29]
["T 15",null,null,null,"S 15",null,null,null,"T 15",null,null,null,"F 15",null,null,null,"S 15",null,null,null,"O 15",null,null,null,"L 15",null,null,null,"L 15",null,null,null,"T 15",null,null,null,"T 15",null,null,null,"S 15",null,null,null,"T 15"]
["F 16",null,null,null,"M 16",null,38,null,"O 16",null,null,null,"L 16",null,null,null,"M 16",null,51,null,"T 16",null,null,null,"S 16",null,null,null,"S 16",null,null,null,"O 16",null,null,null,"F 16",null,null,null,"M 16",null,25,null,"O 16"]
["L 17",null,null,null,"T 17",null,null,null,"T 17",null,null,null,"S 17",null,null,null,"T 17",null,null,null,"F 17",null,null,null,"M 17",null,8,null,"M 17",null,12,null,"T 17","Skærtorsdag",null,null,"L 17",null,null,null,"T 17",null,null,null,"T 17"]
["S 18",null,null,null,"O 18",null,null,null,"F 18",null,null,null,"M 18",null,47,null,"O 18",null,null,null,"L 18",null,null,null,"T 18",null,null,null,"T 18",null,null,null,"F 18","Langfredag",null,null,"S 18",null,null,null,"O 18",null,null,null,"F 18"]
["M 19",null,34,null,"T 19",null,null,null,"L 19",null,null,null,"T 19",null,null,null,"T 19",null,null,null,"S 19",null,null,null,"O 19",null,null,null,"O 19",null,null,null,"L 19",null,null,null,"M 19",null,21,null,"T 19",null,null,null,"L 19"]
["T 20",null,null,null,"F 20",null,null,null,"S 20",null,null,null,"O 20",null,null,null,"F 20",null,null,null,"M 20",null,4,null,"T 20",null,null,null,"T 20",null,null,null,"S 20","Påskedag",null,null,"T 20",null,null,null,"F 20",null,null,null,"S 20"]
["O 21",null,null,null,"L 21",null,null,null,"M 21",null,43,null,"T 21",null,null,null,"L 21",null,null,null,"T 21",null,null,null,"F 21",null,null,null,"F 21",null,null,null,"M 21","2. Påskedag",null,null,"O 21",null,null,null,"L 21",null,null,null,"M 21",null,30]
["T 22",null,null,null,"S 22",null,null,null,"T 22",null,null,null,"F 22",null,null,null,"S 22",null,null,null,"O 22",null,null,null,"L 22",null,null,null,"L 22",null,null,null,"T 22",null,17,null,"T 22",null,null,null,"S 22",null,null,null,"T 22"]
["F 23",null,null,null,"M 23",null,39,null,"O 23",null,null,null,"L 23",null,null,null,"M 23",null,52,null,"T 23",null,null,null,"S 23",null,null,null,"S 23",null,null,null,"O 23",null,null,null,"F 23",null,null,null,"M 23",null,26,null,"O 23"]
["L 24",null,null,null,"T 24",null,null,null,"T 24",null,null,null,"S 24",null,null,null,"T 24","Juleaften",null,null,"F 24",null,null,null,"M 24",null,9,null,"M 24",null,13,null,"T 24",null,null,null,"L 24",null,null,null,"T 24",null,null,null,"T 24"]
["S 25",null,null,null,"O 25",null,null,null,"F 25",null,null,null,"M 25",null,48,null,"O 25","1. Juledag",null,null,"L 25",null,null,null,"T 25",null,null,null,"T 25",null,null,null,"F 25",null,null,null,"S 25",null,null,null,"O 25",null,null,null,"F 25"]
["M 26",null,35,null,"T 26",null,null,null,"L 26",null,null,null,"T 26",null,null,null,"T 26","2. Juledag",null,null,"S 26",null,null,null,"O 26",null,null,null,"O 26",null,null,null,"L 26",null,null,null,"M 26",null,22,null,"T 26",null,null,null,"L 26"]
["T 27",null,null,null,"F 27",null,null,null,"S 27",null,null,null,"O 27",null,null,null,"F 27",null,null,null,"M 27",null,5,null,"T 27",null,null,null,"T 27",null,null,null,"S 27",null,null,null,"T 27",null,null,null,"F 27",null,null,null,"S 27"]
["O 28",null,null,null,"L 28",null,null,null,"M 28",null,44,null,"T 28",null,null,null,"L 28",null,null,null,"T 28",null,null,null,"F 28",null,null,null,"F 28",null,null,null,"M 28",null,18,null,"O 28",null,null,null,"L 28",null,null,null,"M 28",null,31]
["T 29",null,null,null,"S 29",null,null,null,"T 29",null,null,null,"F 29",null,null,null,"S 29",null,null,null,"O 29",null,null,null,null,null,null,null,"L 29",null,null,null,"T 29",null,null,null,"T 29","Kr. Himmelfart",null,null,"S 29",null,null,null,"T 29"]
["F 30",null,null,null,"M 30",null,40,null,"O 30",null,null,null,"L 30",null,null,null,"M 30",null,1,null,"T 30",null,null,null,null,null,null,null,"S 30",null,null,null,"O 30",null,null,null,"F 30",null,null,null,"M 30",null,27,null,"O 30"]
["L 31",null,null,null,null,null,null,null,"T 31",null,null,null,null,null,null,null,"T 31","Nytårsaften",null,null,"F 31",null,null,null,null,null,null,null,"M 31",null,14,null,null,null,null,null,"L 31",null,null,null,null,null,null,null,"T 31"]
[]
["Dage pr. måned"]
[null,null,null,{"$f":"COUNTA(D3:D33)","v":0},null,null,null,{"$f":"COUNTA(H3:H33)","v":0},null,null,null,{"$f":"COUNTA(L3:L33)","v":0},null,null,null,{"$f":"COUNTA(P3:P33)","v":0},null,null,null,{"$f":"COUNTA(T3:T33)","v":0},null,null,null,{"$f":"COUNTA(X3:X33)","v":0},null,null,null,{"$f":"COUNTA(AB3:AB33)","v":0},null,null,null,{"$f":"COUNTA(AF3:AF33)","v":0},null,null,null,{"$f":"COUNTA(AJ3:AJ33)","v":0},null,null,null,{"$f":"COUNTA(AN3:AN33)","v":0},null,null,null,{"$f":"COUNTA(AR3:AR33)","v":0},null,null,null,{"$f":"COUNTA(AV3:AV33)","v":0}]
[]
[null,null,null,null,null,null,null,null,null,null,null,null,null,null,null,null,null,null,null,null,null,null,null,null,null,null,null,null,null,null,null,null,null,null,null,null,null,null,null,null,"Samlet antal dage",null,null,null,null,{"$f":"D36+H36+L36+P36+T36+X36+AB36+AF36+AJ36+AN36+AR36+AV36","v":0}]
[]
["Begrundelse for uddeling af skolemælk i weekender\nHar du markeret for uddeling i weekender, beskriv kort aktiviteten i denne tabel.\n\nPå skoler er skolemælk uddelt på undervisningsdage, dvs. hverdage med aktiv skemalagt undervisning, tilskudsberettiget. Uddeling i weekender er ikke tilskudsberettiget, medmindre der er skemalagt undervisning med mødepligt for børnene.\n\nI dagtilbud/daginstitutioner er skolemælk uddelt på åbningsdage, dvs. dage hvor tilbuddet/institutionen er åben for pasning af børn, tilskudsberettiget. Uddeling i weekender er ikke tilskudsberettiget, medmindre der har været åbent for pasning af børn.\n\n"]
["Dato",null,null,null,"Bemærkning"]

{"sheet":"Tilskudssatser","index":8,"n_rows":12,"n_cols":5,"rows_kept":12,"cut":false,"hidden":false,"merged":[[8,4,8,6],[9,4,9,6],[10,4,10,6],[11,4,11,6],[7,0,7,1],[7,4,7,6],[6,0,6,1],[6,4,6,6],[3,4,3,6],[4,0,4,1],[4,4,4,6],[5,0,5,1],[5,4,5,6]]}
["Tilskudssatser"]
[]
[]
["Produktgruppe",null,"Mængde","Tilskudssats pr. 0,25 liter","Produktbeskrivelse"]
["Konventionel konsummælk",null,"Uddelt i karton af 0,25 liter",0.99,"Nøglehulsmærket mælk, samt letmælk"]
["Konventionel konsummælk",null,"Uddelt i portion af 0,25 liter fra en stor beholder",0.61,"Nøglehulsmærket mælk, samt letmælk"]
["Økologisk konsummælk",null,"Uddelt i karton af 0,25 liter",1.1399999999999999,"Nøglehulsmærket mælk, samt letmælk"]
["Økologisk konsummælk",null,"Uddelt i portion af 0,25 liter fra en stor beholder",0.9,"Nøglehulsmærket mælk, samt letmælk"]
["Konventionel kærnemælk",null,"Uddelt i karton af 0,25 liter",0.97,"Nøglehulsmærket mælk"]
["Konventionel kærnemælk",null,"Uddelt i portion af 0,25 liter fra en stor beholder",0.57999999999999996,"Nøglehulsmærket mælk"]
["Økologisk kærnemælk",null,"Uddelt i karton af 0,25 liter",0.86,"Nøglehulsmærket mælk"]
["Økologisk kærnemælk",null,"Uddelt i portion af 0,25 liter fra en stor beholder",0.74,"Nøglehulsmærket mælk"]